fUSD/lending_fUSD_20250111
["ID","MTS","AMOUNT","RATE_DAILY","PERIOD"]
[348513792,1736597462259,-765.4,0.00011541,2]
[348513793,1736597462268,-701.52,0.00011541,2]
[348513794,1736597462277,-182.97704229,0.00011541,2]
[348513795,1736597462287,-532.53,0.00011541,2]
[348513796,1736597462297,-625.25,0.00011541,2]
[348513797,1736597462306,-598.82,0.00011541,2]
[348513798,1736597462315,-475.77270439,0.00011541,2]
[348513799,1736597462326,-24.22729561,0.00011541,2]
[348513800,1736597462335,-500.0,0.00011541,2]
[348513801,1736597462343,-619.67,0.00011541,2]
[348513802,1736597462352,-500.0,0.00011541,2]
[348513803,1736597462361,-500.0,0.00011541,2]
[348513804,1736597462370,-500.0,0.00011541,2]
[348513805,1736597462379,-500.0,0.00011541,2]
[348513806,1736597462388,-591.53,0.00011541,2]
[348513807,1736597462397,-709.37,0.00011541,2]
[348513808,1736597462406,-684.77,0.00011541,2]
[348513809,1736597462414,-500.0,0.00011541,2]
[348513810,1736597462423,-572.77,0.00011541,2]
[348513811,1736597462433,-597.23,0.00011541,2]
[348513812,1736597462442,-500.0,0.00011541,2]
[348513813,1736597462451,-521.87,0.00011541,2]
[348513814,1736597462461,-1019.91,0.00011541,2]
[348513815,1736597462470,-661.56,0.00011541,2]
[348513816,1736597462478,-1694.7,0.00011541,2]
[348513817,1736597462487,-549.37,0.00011541,2]
[348513818,1736597462496,-500.0,0.00011541,2]
[348513819,1736597462505,-566.34,0.00011541,2]
[348513820,1736597462514,-1112.5,0.00011541,2]
[348513821,1736597462522,-500.0,0.00011541,2]
[348513822,1736597462531,-500.0,0.00011541,2]
[348513823,1736597462541,-561.34,0.00011541,2]
[348513824,1736597462549,-172.1959086,0.00011541,2]
[348513825,1736597462558,-543.89,0.00011541,2]
[348513826,1736597462567,-525.77,0.00011541,2]
[348513827,1736597462576,-500.0,0.00011541,2]
[348513828,1736597462585,-500.0,0.00011541,2]
[348513829,1736597462594,-500.0,0.00011541,2]
[348513830,1736597462602,-500.0,0.00011541,2]
[348513831,1736597462612,-469.68689359,0.00011541,2]
[348513832,1736597462621,-1978.95,0.00011541,2]
[348513833,1736597462630,-938.93,0.00011541,2]
[348513834,1736597462639,-500.0,0.00011541,2]
[348513835,1736597462649,-1060.23,0.00011541,2]
[348513836,1736597462658,-1610.53,0.00011542,2]
[348513837,1736597462666,-630.45,0.00011543,2]
[348513838,1736597462675,-500.0,0.00011543,2]
[348513839,1736597462684,-659.46,0.00011543,2]
[348513840,1736597462693,-728.65,0.00011543,2]
[348513841,1736597462702,-698.29,0.00011543,2]
[348513842,1736597462711,-803.99,0.00011543,2]
[348513843,1736597462720,-924.6,0.00011543,2]
[348513844,1736597462729,-1742.05,0.00011543,2]
[348513845,1736597462738,-3784.66,0.00011543,2]
[348513846,1736597462747,-500.0,0.00011543,2]
[348513847,1736597462755,-500.0,0.00011543,2]
[348513848,1736597462764,-500.0,0.00011543,2]
[348513849,1736597462774,-1805.15,0.00011543,2]
[348513850,1736597462783,-500.0,0.00011543,2]
[348513851,1736597462792,-1444.75,0.00011543,2]
[348513852,1736597462801,-627.6,0.00011543,2]
[348513853,1736597462809,-713.42,0.00011543,2]
[348513854,1736597462818,-500.0,0.00011543,2]
[348513855,1736597462827,-152.0,0.0001155,7]
[348513856,1736597462835,-501.63531465,0.00011555,2]
[348513857,1736597462844,-185.27786974,0.00011568,2]
[348513858,1736597462853,-36662.52338343,0.00011599,2]
[348513859,1736597462862,-253.2,0.000116,2]
[348513860,1736597462871,-938.4,0.00011642,2]
[348513861,1736597462880,-1026.97,0.00011642,2]
[348513862,1736597462888,-150.0,0.00011643,2]
[348513863,1736597462898,-1034.56,0.00011643,2]
[348513864,1736597462907,-1088.7,0.00011643,2]
[348513865,1736597462916,-842.03,0.00011643,2]
[348513866,1736597462925,-501.63531465,0.00011659,2]
[348513867,1736597462934,-199.879,0.0001168,2]
[348513868,1736597462943,-185.27786974,0.00011694,2]
[348513869,1736597462958,-501.63531465,0.00011762,2]
[348513870,1736597462967,-150.0,0.0001178,2]
[348513871,1736597462976,-889.35,0.00011814,2]
[348513872,1736597462985,-500.0,0.00011814,2]
[348513873,1736597462993,-756.17,0.00011814,2]
[348513874,1736597463002,-500.0,0.00011814,2]
[348513875,1736597463011,-500.0,0.00011814,2]
[348513876,1736597463021,-864.479159,0.00011814,2]
[348513877,1736597463031,-628.28,0.00011814,2]
[348513878,1736597463042,-845.669752,0.00011814,2]
[348513879,1736597463052,-500.0,0.00011814,2]
[348513880,1736597463061,-2203.32,0.00011814,2]
[348513881,1736597463071,-500.0,0.00011814,2]
[348513882,1736597463080,-500.0,0.00011814,2]
[348513883,1736597463089,-555.27,0.00011814,2]
[348513884,1736597463098,-500.0,0.00011814,2]
[348513885,1736597463107,-500.0,0.00011814,2]
[348513886,1736597463117,-500.0,0.00011814,2]
[348513887,1736597463127,-500.0,0.00011814,2]
[348513888,1736597463136,-500.0,0.00011814,2]
[348513889,1736597463146,-500.0,0.00011814,2]
[348513890,1736597463156,-2440.07,0.00011814,2]
[348513891,1736597463166,-500.0,0.00011814,2]
[348513892,1736597463175,-500.0,0.00011814,2]
[348513893,1736597463185,-500.0,0.00011814,2]
[348513894,1736597463194,-500.0,0.00011814,2]
[348513895,1736597463205,-542.81,0.00011814,2]
[348513896,1736597463214,-2168.47,0.00011814,2]
[348513897,1736597463223,-500.0,0.00011814,2]
[348513898,1736597463232,-500.0,0.00011814,2]
[348513899,1736597463242,-837.11,0.00011814,2]
[348513900,1736597463252,-1302.44,0.00011814,2]
[348513901,1736597463261,-952.74,0.00011814,2]
[348513902,1736597463270,-500.0,0.00011814,2]
[348513903,1736597463279,-716.39,0.00011814,2]
[348513904,1736597463288,-986.22,0.00011814,2]
[348513905,1736597463298,-643.61,0.00011814,2]
[348513906,1736597463307,-2253.75,0.00011814,2]
[348513907,1736597463316,-500.0,0.00011814,2]
[348513908,1736597463325,-543.99,0.00011814,2]
[348513909,1736597463335,-500.0,0.00011814,2]
[348513910,1736597463344,-916.36,0.00011814,2]
[348513911,1736597463353,-500.0,0.00011814,2]
[348513912,1736597463362,-557.78,0.00011814,2]
[348513913,1736597463371,-578.34,0.00011814,2]
[348513914,1736597463381,-955.55,0.00011814,2]
[348513915,1736597463390,-500.0,0.00011814,2]
[348513916,1736597463398,-2737.36,0.00011814,2]
[348513917,1736597463407,-500.0,0.00011814,2]
[348513918,1736597463417,-543.37,0.00011814,2]
[348513919,1736597463425,-1169.62,0.00011814,2]
[348513920,1736597463435,-1072.01,0.00011814,2]
[348513921,1736597463444,-1644.64,0.00011814,2]
[348513922,1736597463455,-865.21,0.00011814,2]
[348513923,1736597463464,-500.0,0.00011814,2]
[348513924,1736597463474,-1683.29,0.00011814,2]
[348513925,1736597463484,-1378.72,0.00011814,2]
[348513926,1736597463493,-2661.33,0.00011814,2]
[348513927,1736597463502,-500.0,0.00011814,2]
[348513928,1736597463511,-1005.4,0.00011814,2]
[348513929,1736597463520,-3163.08,0.00011814,2]
[348513930,1736597463529,-716.64,0.00011814,2]
[348513931,1736597463538,-3026.43,0.00011814,2]
[348513932,1736597463547,-927.48,0.00011814,2]
[348513933,1736597463557,-1692.93,0.00011814,2]
[348513934,1736597463566,-1249.42,0.00011814,2]
[348513935,1736597463575,-500.0,0.00011814,2]
[348513936,1736597463584,-1182.11,0.00011814,2]
[348513937,1736597463593,-1080.18,0.00011814,2]
[348513938,1736597463602,-1426.27,0.00011814,2]
[348513939,1736597463611,-1995.2,0.00011814,2]
[348513940,1736597463620,-765.62,0.00011814,2]
[348513941,1736597463629,-1456.54,0.00011814,2]
[348513942,1736597463640,-1159.75,0.00011814,2]
[348513943,1736597463649,-500.0,0.00011814,2]
[348513944,1736597463659,-1113.67,0.00011814,2]
[348513945,1736597463668,-500.0,0.00011814,2]
[348513946,1736597463678,-1081.51,0.00011814,2]
[348513947,1736597463687,-1067.27,0.00011814,2]
[348513948,1736597463695,-3472.83,0.00011814,2]
[348513949,1736597463705,-847.86,0.00011814,2]
[348513950,1736597463714,-500.0,0.00011814,2]
[348513951,1736597463723,-856.18,0.00011814,2]
[348513952,1736597463732,-1358.71,0.00011814,2]
[348513953,1736597463742,-500.0,0.00011815,2]
[348513954,1736597463751,-833.11,0.00011815,2]
[348513955,1736597463760,-500.0,0.00011815,2]
[348513956,1736597463769,-500.0,0.00011815,2]
[348513957,1736597463779,-500.0,0.00011815,2]
[348513958,1736597463788,-295.23,0.00011815,2]
[348513959,1736597463797,-500.0,0.00011815,2]
[348513960,1736597463806,-655.39,0.00011815,2]
[348513961,1736597463816,-500.0,0.00011815,2]
[348513962,1736597463825,-500.0,0.00011815,2]
[348513963,1736597463834,-681.11,0.00011815,2]
[348513964,1736597463845,-500.0,0.00011815,2]
[348513965,1736597463853,-276.78664363,0.00011815,2]
[348513966,1736597463864,-691.08,0.00011815,2]
[348513967,1736597463872,-500.0,0.00011815,2]
[348513968,1736597463882,-264.36031071,0.00011815,2]
[348513969,1736597463905,-501.03968929,0.00011815,2]
[348513970,1736597463915,-701.52,0.00011815,2]
[348513971,1736597463925,-532.53,0.00011815,2]
[348513972,1736597463935,-625.25,0.00011815,2]
[348513973,1736597463944,-598.82,0.00011815,2]
[348513974,1736597463958,-500.0,0.00011815,2]
[348513975,1736597463968,-500.0,0.00011815,2]
[348513976,1736597463978,-307.68834861,0.00011815,2]
[348513977,1736597463990,-311.98165139,0.00011815,2]
[348513978,1736597464001,-456.91776975,0.00011815,2]
[348513979,1736597464012,-43.08223025,0.00011815,2]
[348513980,1736597464022,-500.0,0.00011815,2]
[348513981,1736597464034,-150.0,0.00011815,2]
[348513982,1736597464047,-500.0,0.00011815,2]
[348513983,1736597464057,-500.0,0.00011815,2]
[348513984,1736597464067,-591.53,0.00011815,2]
[348513985,1736597464077,-709.37,0.00011815,2]
[348513986,1736597464086,-684.77,0.00011815,2]
[348513987,1736597464096,-500.0,0.00011815,2]
[348513988,1736597464105,-572.77,0.00011815,2]
[348513989,1736597464115,-500.0,0.00011815,2]
[348513990,1736597464125,-521.87,0.00011815,2]
[348513991,1736597464135,-1019.91,0.00011815,2]
[348513992,1736597464145,-661.56,0.00011815,2]
[348513993,1736597464154,-1694.7,0.00011815,2]
[348513994,1736597464164,-190.76097954,0.00011815,2]
[348513995,1736597464175,-566.34,0.00011815,2]
[348513996,1736597464186,-1112.5,0.00011815,2]
[348513997,1736597464196,-500.0,0.00011815,2]
[348513998,1736597464206,-561.34,0.00011815,2]
[348513999,1736597464216,-500.0,0.00011815,2]
[348514000,1736597464227,-543.89,0.00011815,2]
[348514001,1736597464237,-525.77,0.00011815,2]
[348514002,1736597464247,-500.0,0.00011815,2]
[348514003,1736597464257,-500.0,0.00011815,2]
[348514004,1736597464267,-500.0,0.00011815,2]
[348514005,1736597464277,-500.0,0.00011815,2]
[348514006,1736597464287,-1978.95,0.00011815,2]
[348514007,1736597464296,-938.93,0.00011815,2]
[348514008,1736597464306,-252.12144298,0.00011815,2]
[348514009,1736597464316,-1060.23,0.00011815,2]
[348514010,1736597464326,-983.36,0.00011815,2]
[348514011,1736597464335,-1610.53,0.00011816,2]
[348514012,1736597464345,-630.45,0.00011817,2]
[348514013,1736597464355,-500.0,0.00011817,2]
[348514014,1736597464365,-728.65,0.00011817,2]
[348514015,1736597464375,-803.99,0.00011817,2]
[348514016,1736597464384,-924.6,0.00011817,2]
[348514017,1736597464394,-1742.05,0.00011817,2]
[348514018,1736597464403,-3784.66,0.00011817,2]
[348514019,1736597464413,-500.0,0.00011817,2]
[348514020,1736597464422,-500.0,0.00011817,2]
[348514021,1736597464432,-500.0,0.00011817,2]
[348514022,1736597464442,-1805.15,0.00011817,2]
[348514023,1736597464452,-500.0,0.00011817,2]
[348514024,1736597464462,-1444.75,0.00011817,2]
[348514025,1736597464471,-627.6,0.00011817,2]
[348514026,1736597464480,-713.42,0.00011817,2]
[348514027,1736597464490,-500.0,0.00011817,2]
[348514028,1736597464501,-185.27786974,0.00011821,2]
[348514029,1736597464511,-150.0,0.00011842,2]
[348514030,1736597464522,-501.63531465,0.00011866,2]
[348514031,1736597464532,-201.99961363,0.0001187,2]
[348514032,1736597464541,-152.0,0.00011878,8]
[348514033,1736597464550,-429.82131162,0.00011884,2]
[348514034,1736597464560,-938.4,0.00011916,2]
[348514035,1736597464570,-1026.97,0.00011916,2]
[348514036,1736597464579,-150.0,0.00011917,2]
[348514037,1736597464589,-1034.56,0.00011917,2]
[348514038,1736597464599,-1088.7,0.00011917,2]
[348514039,1736597464609,-842.03,0.00011917,2]
[348514040,1736597464619,-782.0,0.00011917,2]
[348514041,1736597464628,-185.27786974,0.00011947,2]
[348514042,1736597464638,-501.63531465,0.00011969,2]
[348514043,1736597464648,-15629.56622505,0.00012,2]
[348514044,1736597464658,-1448.130427,0.00012053,2]
[348514045,1736597464667,-150.0,0.00012054,2]
[348514046,1736597464676,-200.0,0.00012055,2]
[348514047,1736597464686,-501.63531465,0.00012072,2]
[348514048,1736597464696,-185.27786974,0.00012074,2]
[348514049,1736597464706,-889.35,0.00012088,2]
[348514050,1736597464715,-175.07378853,0.00012088,2]
[348514051,1736597464725,-756.17,0.00012088,2]
[348514052,1736597464734,-500.0,0.00012088,2]
[348514053,1736597464744,-500.0,0.00012088,2]
[348514054,1736597464754,-864.479159,0.00012088,2]
[348514055,1736597464764,-628.28,0.00012088,2]
[348514056,1736597464773,-845.669752,0.00012088,2]
[348514057,1736597464783,-500.0,0.00012088,2]
[348514058,1736597464792,-2203.32,0.00012088,2]
[348514059,1736597464801,-500.0,0.00012088,2]
[348514060,1736597464811,-500.0,0.00012088,2]
[348514061,1736597464820,-555.27,0.00012088,2]
[348514062,1736597464830,-500.0,0.00012088,2]
[348514063,1736597464840,-500.0,0.00012088,2]
[348514064,1736597464850,-500.0,0.00012088,2]
[348514065,1736597464860,-500.0,0.00012088,2]
[348514066,1736597464869,-500.0,0.00012088,2]
[348514067,1736597464879,-500.0,0.00012088,2]
[348514068,1736597464888,-2440.07,0.00012088,2]
[348514069,1736597464898,-500.0,0.00012088,2]
[348514070,1736597464907,-500.0,0.00012088,2]
[348514071,1736597464917,-500.0,0.00012088,2]
[348514072,1736597464926,-500.0,0.00012088,2]
[348514073,1736597464936,-542.81,0.00012088,2]
[348514074,1736597464946,-2168.47,0.00012088,2]
[348514075,1736597464961,-500.0,0.00012088,2]
[348514076,1736597464971,-500.0,0.00012088,2]
[348514077,1736597464981,-837.11,0.00012088,2]
[348514078,1736597464991,-1302.44,0.00012088,2]
[348514079,1736597465001,-952.74,0.00012088,2]
[348514080,1736597465010,-500.0,0.00012088,2]
[348514081,1736597465020,-716.39,0.00012088,2]
[348514082,1736597465030,-986.22,0.00012088,2]
[348514083,1736597465039,-643.61,0.00012088,2]
[348514084,1736597465050,-2253.75,0.00012088,2]
[348514085,1736597465060,-543.99,0.00012088,2]
[348514086,1736597465069,-500.0,0.00012088,2]
[348514087,1736597465080,-500.0,0.00012088,2]
[348514088,1736597465090,-916.36,0.00012088,2]
[348514089,1736597465099,-500.0,0.00012088,2]
[348514090,1736597465109,-557.78,0.00012088,2]
[348514091,1736597465119,-578.34,0.00012088,2]
[348514092,1736597465129,-955.55,0.00012088,2]
[348514093,1736597465139,-500.0,0.00012088,2]
[348514094,1736597465149,-2737.36,0.00012088,2]
[348514095,1736597465159,-500.0,0.00012088,2]
[348514096,1736597465170,-543.37,0.00012088,2]
[348514097,1736597465183,-1169.62,0.00012088,2]
[348514098,1736597465192,-1072.01,0.00012088,2]
[348514099,1736597465202,-1644.64,0.00012088,2]
[348514100,1736597465214,-865.21,0.00012088,2]
[348514101,1736597465224,-500.0,0.00012088,2]
[348514102,1736597465234,-1683.29,0.00012088,2]
[348514103,1736597465244,-1378.72,0.00012088,2]
[348514104,1736597465254,-2661.33,0.00012088,2]
[348514105,1736597465264,-527.46,0.00012088,2]
[348514106,1736597465273,-1005.4,0.00012088,2]
[348514107,1736597465283,-3163.08,0.00012088,2]
[348514108,1736597465294,-716.64,0.00012088,2]
[348514109,1736597465303,-3026.43,0.00012088,2]
[348514110,1736597465314,-927.48,0.00012088,2]
[348514111,1736597465323,-1692.93,0.00012088,2]
[348514112,1736597465333,-1249.42,0.00012088,2]
[348514113,1736597465343,-500.0,0.00012088,2]
[348514114,1736597465353,-1182.11,0.00012088,2]
[348514115,1736597465363,-1080.18,0.00012088,2]
[348514116,1736597465373,-1426.27,0.00012088,2]
[348514117,1736597465383,-1995.2,0.00012088,2]
[348514118,1736597465392,-765.62,0.00012088,2]
[348514119,1736597465403,-1456.54,0.00012088,2]
[348514120,1736597465414,-1159.75,0.00012088,2]
[348514121,1736597465424,-500.0,0.00012088,2]
[348514122,1736597465434,-1113.67,0.00012088,2]
[348514123,1736597465445,-500.0,0.00012088,2]
[348514124,1736597465454,-1081.51,0.00012088,2]
[348514125,1736597465465,-1067.27,0.00012088,2]
[348514126,1736597465474,-3472.83,0.00012088,2]
[348514127,1736597465484,-847.86,0.00012088,2]
[348514128,1736597465494,-500.0,0.00012088,2]
[348514129,1736597465504,-856.18,0.00012088,2]
[348514130,1736597465514,-1358.71,0.00012088,2]
[348514131,1736597465523,-500.0,0.00012089,2]
[348514132,1736597465533,-833.11,0.00012089,2]
[348514133,1736597465543,-500.0,0.00012089,2]
[348514134,1736597465552,-500.0,0.00012089,2]
[348514135,1736597465562,-500.0,0.00012089,2]
[348514136,1736597465572,-500.0,0.00012089,2]
[348514137,1736597465580,-655.39,0.00012089,2]
[348514138,1736597465590,-500.0,0.00012089,2]
[348514139,1736597465600,-520.55,0.00012089,2]
[348514140,1736597465609,-681.11,0.00012089,2]
[348514141,1736597465620,-500.0,0.00012089,2]
[348514142,1736597465630,-691.08,0.00012089,2]
[348514143,1736597465641,-500.0,0.00012089,2]
[348514144,1736597465651,-765.4,0.00012089,2]
[348514145,1736597465662,-701.52,0.00012089,2]
[348514146,1736597465673,-532.53,0.00012089,2]
[348514147,1736597465682,-625.25,0.00012089,2]
[348514148,1736597465692,-598.82,0.00012089,2]
[348514149,1736597465701,-500.0,0.00012089,2]
[348514150,1736597465711,-500.0,0.00012089,2]
[348514151,1736597465721,-619.67,0.00012089,2]
[348514152,1736597465732,-500.0,0.00012089,2]
[348514153,1736597465742,-562.14920599,0.00012089,2]
[348514154,1736597465752,-500.0,0.00012089,2]
[348514155,1736597465761,-500.0,0.00012089,2]
[348514156,1736597465771,-591.53,0.00012089,2]
[348514157,1736597465781,-709.37,0.00012089,2]
[348514158,1736597465790,-684.77,0.00012089,2]
[348514159,1736597465800,-454.57260467,0.00012089,2]
[348514160,1736597465810,-572.77,0.00012089,2]
[348514161,1736597465820,-500.0,0.00012089,2]
[348514162,1736597465830,-521.87,0.00012089,2]
[348514163,1736597465840,-1019.91,0.00012089,2]
[348514164,1736597465850,-661.56,0.00012089,2]
[348514165,1736597465860,-1694.7,0.00012089,2]
[348514166,1736597465870,-566.34,0.00012089,2]
[348514167,1736597465883,-1112.5,0.00012089,2]
[348514168,1736597465894,-500.0,0.00012089,2]
[348514169,1736597465904,-561.34,0.00012089,2]
[348514170,1736597465915,-500.0,0.00012089,2]
[348514171,1736597465925,-543.89,0.00012089,2]
[348514172,1736597465934,-525.77,0.00012089,2]
[348514173,1736597465947,-500.0,0.00012089,2]
[348514174,1736597465963,-500.0,0.00012089,2]
[348514175,1736597465972,-500.0,0.00012089,2]
[348514176,1736597465982,-500.0,0.00012089,2]
[348514177,1736597465992,-1978.95,0.00012089,2]
[348514178,1736597466003,-938.93,0.00012089,2]
[348514179,1736597466013,-1060.23,0.00012089,2]
[348514180,1736597466022,-1610.53,0.0001209,2]
[348514181,1736597466033,-630.45,0.00012091,2]
[348514182,1736597466042,-500.0,0.00012091,2]
[348514183,1736597466052,-728.65,0.00012091,2]
[348514184,1736597466061,-803.99,0.00012091,2]
[348514185,1736597466071,-924.6,0.00012091,2]
[348514186,1736597466081,-1742.05,0.00012091,2]
[348514187,1736597466090,-3784.66,0.00012091,2]
[348514188,1736597466101,-500.0,0.00012091,2]
[348514189,1736597466111,-500.0,0.00012091,2]
[348514190,1736597466121,-500.0,0.00012091,2]
[348514191,1736597466131,-1805.15,0.00012091,2]
[348514192,1736597466141,-500.0,0.00012091,2]
[348514193,1736597466151,-1444.75,0.00012091,2]
[348514194,1736597466160,-627.6,0.00012091,2]
[348514195,1736597466170,-713.42,0.00012091,2]
[348514196,1736597466181,-500.0,0.00012091,2]
[348514197,1736597466191,-34977.98139878,0.000121,2]
[348514198,1736597466201,-2115.54283212,0.00012116,2]
[348514199,1736597466212,-501.63531465,0.00012176,2]
[348514200,1736597466223,-3000.0,0.0001218,2]
[348514201,1736597466233,-938.4,0.0001219,2]
[348514202,1736597466243,-1026.97,0.0001219,2]
[348514203,1736597466254,-150.0,0.00012191,2]
[348514204,1736597466264,-1034.56,0.00012191,2]
[348514205,1736597466275,-1088.7,0.00012191,2]
[348514206,1736597466286,-842.03,0.00012191,2]
[348514207,1736597466296,-185.27786974,0.000122,2]
[348514208,1736597466307,-2000.0,0.00012201,2]
[348514209,1736597466316,-152.0,0.00012205,9]
[348514210,1736597466326,-297.31,0.00012247,2]
[348514211,1736597466336,-150.0,0.00012252,2]
[348514212,1736597466346,-150.0,0.00012268,2]
[348514213,1736597466357,-501.63531465,0.00012279,2]
[348514214,1736597466560,-2000.0,0.00012299,2]
[348514215,1736597466570,-2000.0,0.00012299,2]
[348514216,1736597466580,-2000.0,0.00012299,2]
[348514217,1736597466590,-2000.0,0.00012299,2]
[348514218,1736597466599,-2000.0,0.00012299,2]
[348514219,1736597466608,-2000.0,0.00012299,2]
[348514220,1736597466617,-2000.0,0.00012299,2]
[348514221,1736597466627,-2000.0,0.00012299,2]
[348514222,1736597466638,-2000.0,0.00012299,2]
[348514223,1736597466648,-500.0,0.00012299,2]
[348514224,1736597466658,-1000.0,0.00012299,2]
[348514225,1736597466667,-512892.80563042,0.000123,4]
[348514226,1736597466784,-175.66420089,9.897e-05,2]
[348514227,1736597466794,-1289.5372489,0.000123,4]
[348514228,1736597466806,-355.64993399,0.000123,4]
[348514229,1736597466817,-3276.69999999,0.000123,4]
[348514230,1736597466829,-1061.53025758,0.000123,4]
[348514231,1736597466846,-606.36234461,0.000123,4]
[348514232,1736597466858,-621.61253287,0.000123,4]
[348514233,1736597466869,-1613.94584762,0.000123,4]
[348514234,1736597466880,-3025.96956689,0.000123,4]
[348514235,1736597466891,-4423.04168,0.000123,4]
[348514236,1736597466903,-17766.9816,0.000123,4]
[348514237,1736597466914,-64763.23025,0.000123,4]
[348514238,1736597466933,-500.0,9.897e-05,2]
[348514239,1736597466942,-4244.7706,0.000123,4]
[348514240,1736597466962,-120056.09701892,0.000123,4]
[348514241,1736597466972,-285.56665977,0.000123,4]
[348514243,1736597668897,157.0,0.00015,60]
[348514247,1736598062641,853.05,8.219e-05,2]
[348514248,1736598288623,501.56087665,0.0002,120]
[348514258,1736598377534,188.0,8e-05,2]
[348514264,1736598524160,3264.68030079,8e-05,2]
[348514279,1736598631755,-374.13139,8.702e-05,2]
[348514280,1736598631766,-250.0,8.725e-05,2]
[348514281,1736598631776,-1000.0,8.739e-05,2]
[348514282,1736598631785,-200.0,8.746e-05,2]
[348514283,1736598631794,-279.06,8.924e-05,2]
[348514284,1736598631804,-867.0548418,8.927e-05,2]
[348514285,1736598631814,-1587.89459183,8.927e-05,2]
[348514286,1736598631825,-380.67764052,8.927e-05,2]
[348514287,1736598631841,-895.81505396,8.927e-05,2]
[348514288,1736598631869,-4880.92787189,8.927e-05,2]
[348514289,1736598631878,-187.0,9e-05,2]
[348514290,1736598631888,-1479.07995056,9e-05,2]
[348514291,1736598631898,-1124.13,9.053e-05,2]
[348514292,1736598631907,-793.36,9.113e-05,2]
[348514293,1736598631917,-250.0,9.148e-05,2]
[348514294,1736598631926,-457.07,9.216e-05,2]
[348514295,1736598631935,-1092.78783909,9.216e-05,2]
[348514296,1736598631953,-10656.10624504,9.216e-05,2]
[348514297,1736598631964,-12151.10591587,9.216e-05,2]
[348514298,1736598631973,-171.61,9.247e-05,2]
[348514299,1736598631982,-177.16,9.304e-05,2]
[348514300,1736598631991,-1000.0,9.4e-05,3]
[348514301,1736598632000,-166.91,9.443e-05,2]
[348514302,1736598632009,-162.99,9.459e-05,2]
[348514303,1736598632019,-2100.0,9.5e-05,3]
[348514304,1736598632028,-3200.0,9.6e-05,3]
[348514305,1736598632037,-500.0,9.664e-05,2]
[348514306,1736598632046,-500.0,9.664e-05,2]
[348514307,1736598632055,-4200.0,9.7e-05,3]
[348514308,1736598632065,-330.8905,9.797e-05,2]
[348514309,1736598632076,-1000.0,9.797e-05,2]
[348514310,1736598632085,-5300.0,9.8e-05,3]
[348514311,1736598632094,-1000.0,9.832e-05,2]
[348514312,1736598632103,-506.22125084,9.895e-05,2]
[348514313,1736598632112,-500.0,9.896e-05,2]
[348514314,1736598632121,-501.70416606,9.896e-05,2]
[348514315,1736598632130,-500.0,9.896e-05,2]
[348514316,1736598632139,-500.0,9.896e-05,2]
[348514317,1736598632148,-500.0,9.896e-05,2]
[348514318,1736598632157,-500.0,9.896e-05,2]
[348514319,1736598632166,-1510.94,9.896e-05,2]
[348514320,1736598632175,-500.0,9.896e-05,2]
[348514321,1736598632185,-1510.94,9.896e-05,2]
[348514322,1736598632194,-500.0,9.896e-05,2]
[348514323,1736598632206,-500.0,9.896e-05,2]